{"text_format":"1","workbook":"xlsx","n_sheets":6,"sheets":["CountCharacters","AllChar","SumChar","SpecialChar","ExcludeSpChar","AllCharVBA"],"not_rendered":{"charts":0,"images":0,"macros":1,"external_links":0,"defined_names":0,"comments":0,"pivot_tables":0},"unopened":[],"bounds":{"document_bytes":16777216,"sheet_cells":100000,"rows_first":2000,"rows_last":500,"rows_between":2000,"halvings":0,"cell_chars":16384,"cell_head_chars":4096},"cells_cut":0,"cells_raw":0,"read":"whole","date_system":"1900"}

{"sheet":"CountCharacters","index":0,"n_rows":13,"n_cols":5,"rows_kept":13,"cut":false,"hidden":false,"merged":[[1,1,1,2]]}
[]
[null,"Count Characters in Cell up to Space"]
[]
[null,"Full Names","Count of Characters up to Space"]
[null,"Ashley Rosa",{"$f":"LEN(LEFT(B5,FIND(\" \",B5,1)-1))","v":6}]
[null,"Brittany Lancaster",{"$f":"LEN(LEFT(B6,FIND(\" \",B6,1)-1))","v":8}]
[null,"David Smith",5]
[null,"John Harvard",4]
[null,"Kaitlyn Kristy",7]
[null,"Max Holloway",3]
[]
[null,null,null,null,{"$f":"FIND(\" \",B5,1)-1","v":6}]
[null,null,null,null,{"$f":"LEN(LEFT(B10,FIND(\" \",B10,1)-1))","v":3}]

{"sheet":"AllChar","index":1,"n_rows":10,"n_cols":3,"rows_kept":10,"cut":false,"hidden":false,"merged":[[1,1,1,2]]}
[]
[null,"Count All Characters in Cells"]
[]
[null,"Full Names","Count"]
[null,"Ashley Rosa",{"$f":"LEN(B5)","v":11}]
[null,"Brittany Lancaster",{"$f":"LEN(B6)","v":18}]
[null,"David Smith",11]
[null,"John Harvard",12]
[null,"Kaitlyn Kristy",14]
[null,"Max Holloway",12]

{"sheet":"SumChar","index":2,"n_rows":10,"n_cols":4,"rows_kept":10,"cut":false,"hidden":false,"merged":[[1,1,1,3]]}
[]
[null,"Count All Characters in a Range"]
[]
[null,"Full Names",null,"Count"]
[null,"Ashley Rosa",null,{"$f":"SUMPRODUCT(LEN(B5:B10))","v":78}]
[null,"Brittany Lancaster"]
[null,"David Smith"]
[null,"John Harvard"]
[null,"Kaitlyn Kristy"]
[null,"Max Holloway"]

{"sheet":"SpecialChar","index":3,"n_rows":10,"n_cols":3,"rows_kept":10,"cut":false,"hidden":false,"merged":[[1,1,1,2]]}
[]
[null,"Count Special Characters in Cells"]
[]
[null,"Full Names","Count"]
[null,"Ashley Rosa",{"$f":"LEN(B5)-LEN(SUBSTITUTE(B5,\"s\",\"\"))","v":2}]
[null,"Brittany Lancaster",{"$f":"LEN(B6)-LEN(SUBSTITUTE(B6,\"s\",\"\"))","v":1}]
[null,"David Smith",0]
[null,"John Harvard",0]
[null,"Kaitlyn Kristy",1]
[null,"Max Holloway",0]

{"sheet":"ExcludeSpChar","index":4,"n_rows":10,"n_cols":3,"rows_kept":10,"cut":false,"hidden":false,"merged":[[1,1,1,2]]}
[]
[null,"Count Characters in Cell Excluding Sp. Char"]
[]
[null,"Full Names","Count"]
[null,"Ashley Rosa",{"$f":"LEN(SUBSTITUTE(B5,\" \",\"\"))","v":10}]
[null,"Brittany Lancaster",{"$f":"LEN(SUBSTITUTE(B6,\" \",\"\"))","v":17}]
[null,"David Smith",10]
[null,"John Harvard",11]
[null,"Kaitlyn Kristy",13]
[null,"Max Holloway",11]

{"sheet":"AllCharVBA","index":5,"n_rows":10,"n_cols":3,"rows_kept":10,"cut":false,"hidden":false,"merged":[[1,1,1,2]]}
[]
[null,"Count Characters in Cells with VBA"]
[]
[null,"Full Names","Count"]
[null,"Ashley Rosa",11]
[null,"Brittany Lancaster",18]
[null,"David Smith",11]
[null,"John Harvard",12]
[null,"Kaitlyn Kristy",14]
[null,"Max Holloway",12]